[Event "15th Tashkent Open Agzamov 2022"]
[Site "Tashkent"]
[Date "2022.05.05"]
[Round "3.1"]
[White "Utegaliyev, Azamat"]
[Black "Sindarov, Javokhir"]
[Result "0-1"]
[ECO "B23"]
[WhiteElo "2463"]
[BlackElo "2609"]
[Annotator "TA"]
[PlyCount "128"]
[EventDate "2022.05.05"]
[EventType "swiss"]
[EventCountry "UZB"]
[SourceTitle "playchess.com"]
[Source "ChessBase"]
[SourceQuality "1"]
[TimeControl "5400+30"]

{[%evp 9,128,-28,-21,-27,-21,-28,-24,-38,-35,-45,-44,-62,-47,-77,-59,-71,-44,-60,-62,-72,-63,-67,-68,-61,-43,-106,-53,-118,-33,-44,-28,-29,-14,-31,-18,-23,-27,-81,-91,-87,-7,-202,-189,-216,-224,-222,-221,-342,-235,-423,-392,-412,-375,-357,-240,-140,-100,-91,-91,-91,-91,-99,-50,-91,-91,-91,-91,-100,-100,-103,-91,-91,-51,-51,-54,-58,-50,-50,-48,-48,0,-50,0,-58,-39,-52,-20,-20,-20,-47,-47,-83,-83,-83,-83,-83,-83,-83,-42,-83,-83,-83,-83,-86,-93,-97,-104,-127,-118,-237,-236,-228,-239,-208,-87,-87,-87,-87,-87,-87,-87]} 1. e4 {[%emt 0:01:46]} c5 {[%emt 0:00:51]} 2. Nc3 {[%emt 0:00:12]} e6 {[%emt 0:00:04]} 3. Nge2 {[%emt 0:00:21]} Nf6 {[%emt 0:00:10]} 4. g3 {[%emt 0:00:06]} b5 {[%emt 0:00:13][%cal Bb7b5,Bb5b4][%mdl 32]} 5. Bg2 {[%emt 0:04:04]} Bb7 $1 {[%emt 0:00:05]} 6. d3 {[%emt 0:00:18] B23: Closed Sicilian: Lines without g3.} b4 {[%emt 0:01:39]} 7. Nb1 {[%emt 0:01:23]} d5 {[%emt 0:00:59]} 8. e5 {[%emt 0:01:32] [#] Black has an edge.} Ng4 $146 {[%emt 0:06:16][%cal Bf6g4,Bg4h6,Bh6f5][%mdl 32]} ({Predecessor:} 8... Nfd7 9. f4 Be7 10. O-O O-O 11. Nd2 a5 12. Nf3 Nc6 13. g4 a4 14. Ng3 Qb6 {0-1 (35) Khalaji,H (2093)-Paravyan,D (2548) St Petersburg 2017}) 9. f4 {[%emt 0:00:20]} h5 {[%emt 0:00:04]} 10. h3 {[%emt 0:04:38]} Nh6 {[%emt 0:00:43] Black is more active.} 11. Nd2 {[%emt 0:00:55]} Nf5 {[%emt 0:19:29]} 12. Nf3 {[%emt 0:01:33]} Nd7 {[%emt 0:00:29]} 13. Kf2 {[%emt 0:04:58]} Be7 {[%emt 0:13:33]} 14. g4 {[%emt 0:01:34]} Nh4 {[%emt 0:00:07]} (14... Bh4+ $6 15. Kg1 Ng3 16. Nxh4 Qxh4 17. Nxg3 Qxg3 18. Qf3 Qxf3 19. Bxf3 $11) 15. Nxh4 {[%emt 0:01:40]} Bxh4+ {[%emt 0:00:13]} 16. Kg1 {[%emt 0:00:14]} g5 {[%emt 0:00:06]} 17. c3 {[%emt 0:13:43]} (17. a3 $1 $15) 17... gxf4 {[%emt 0:07:54]} ({Better is} 17... bxc3 $17 18. bxc3 Rb8) 18. d4 {[%emt 0:00:12]} ({White should play} 18. Bxf4 $15 Rg8 19. d4) 18... cxd4 {[%emt 0:25:55]} (18... Qa5 $1 $17 {Threatens to win with ...bxc3.} 19. Bd2 cxd4 20. cxd4 f3 21. Bxf3 Nxe5 $1 {[%mdl 512]}) 19. cxd4 $15 {[%emt 0:00:11]} Qb6 {[%emt 0:00:02] Hoping for ...f3.} (19... hxg4 20. hxg4 Rg8 21. Nxf4 $11) 20. Bxf4 {[%emt 0:00:45]} Ba6 {[%emt 0:00:02]} 21. Bf3 {[%emt 0:01:10]} f6 {[%emt 0:00:48]} 22. exf6 {[%emt 0:01:47] aiming for g5.} e5 $1 $36 {[%emt 0:00:05][%mdl 2048] Black is pushing.} 23. f7+ {[%emt 0:01:33]} (23. Rh2 $1 $11 e4 24. Ng3 Bxf6 25. Be2) 23... Kf8 $17 {[%emt 0:06:52]} 24. Be3 {[%emt 0:00:39]} (24. Bxd5 Bxe2 $1 25. Qxe2 Qxd4+ 26. Be3 Qxd5 $17) 24... Nf6 {[%emt 0:05:31]} (24... e4 $17 25. Nf4 exf3 26. Qxf3 Rh7 27. Nxd5 (27. Qxd5 Bb7 $17) 27... Rxf7 28. Qxf7+ (28. Nxb6 $2 Rxf3 29. Bh6+ Kg8 $19) 28... Kxf7 29. Nxb6 axb6) 25. Qd2 $2 {[%emt 0:08:57]} (25. g5 $1 $11 {and White has nothing to worry.} Nh7 26. Rh2 (26. Bxd5 Rd8 $15) 26... Nxg5 27. Bxd5) 25... e4 $19 {[%emt 0:00:18]} 26. Bg2 {[%emt 0:00:06]} hxg4 {[%emt 0:00:27]} (26... Kxf7 27. g5 Nd7 28. Nf4 $11) 27. hxg4 {[%emt 0:05:15]} Nxg4 {[%emt 0:00:21]} (27... Kxf7 28. Rf1 Bxe2 29. Qxe2 $16) 28. Nf4 {[%emt 0:00:10]} (28. Rh3 $142) 28... Rd8 {[%emt 0:03:33]} (28... Kxf7 $2 29. Rc1 Qd6 30. Rc5 Nxe3 31. Qxe3) 29. Bh3 $2 {[%emt 0:10:42]} (29. Nxd5 $2 Rxd5 30. Rd1 Qf6 $19) (29. Rc1 Kxf7 30. Rc5) 29... Nxe3 {[%emt 0:01:18]} 30. Ne6+ {[%emt 0:01:03]} Kxf7 {[%emt 0:02:58]} 31. Nxd8+ {[%emt 0:00:07]} Bxd8 {[%emt 0:01:55] Really sharp! This bishop pair is nice.} 32. Qxe3 {[%emt 0:00:12][%cal Oh3e6]} Bf6 {[%emt 0:00:05]} (32... Qf6 33. Rh2 Ke7 34. Rf2 $15) 33. Rd1 {[%emt 0:02:37]} Bd3 {[%emt 0:00:05]} 34. Rxd3 {[%emt 0:05:38]} exd3 {[%emt 0:00:04]} 35. Kg2 {[%emt 0:03:26]} Rh4 {[%emt 0:03:59]} (35... Qxd4 $6 36. Qe6+ Kf8 37. Qc8+ Kg7 38. Qd7+ Kg6 39. Qf5+ Kh6 40. Bg4+ Kg7 41. Qd7+ Kg6 42. Qf5+ Kg7 43. Qd7+ Kg6 44. Qf5+ Kg7 $11) (35... Rg8+ $17 36. Kf3 Bxd4 37. Qxd3 Rg5) 36. Qxd3 {[%emt 0:02:30][%cal Oh3e6]} ({Avoid the trap} 36. Bd7 $2 Rxh1 37. Kxh1 Qxd4 38. Be6+ Ke7 39. Qxd4 Bxd4 40. Bxd5 Kf6 $17) 36... Qxd4 {[%emt 0:00:04]} 37. Qxd4 {[%emt 0:06:42]} Rxd4 $15 {[%emt 0:00:05][%mdl 4096] Endgame KRB-KRB} ({Don't play} 37... Bxd4 38. Be6+ $1 Kxe6 39. Rxh4 $16) 38. Rc1 {[%emt 0:00:09]} Rd2+ {[%emt 0:00:28]} 39. Kf3 {[%emt 0:00:28]} Bd4 {[%emt 0:00:54]} ({Much weaker is} 39... Rxb2 $6 40. Rc7+ Kg6 41. Rxa7 $15) 40. Rc6 {[%emt 0:02:17]} Bb6 {[%emt 0:00:59]} 41. Bf5 {[%emt 0:00:57]} Rf2+ {[%emt 0:00:36]} 42. Kg4 {[%emt 0:00:01]} Ke7 {[%emt 0:00:14]} 43. Rc2 {[%emt 0:06:58]} Rf1 {[%emt 0:00:04]} 44. Rc6 {[%emt 0:00:32]} Rf2 {[%emt 0:00:52]} 45. Rc2 $1 {[%emt 0:00:06]} Rf1 {[%emt 0:00:01]} (45... Kf6 $5 {[%cal Rf2f5]} 46. Rxf2 Bxf2 $17) 46. Rc6 $1 {[%emt 0:00:39]} Ra1 {[%emt 0:00:06]} 47. Re6+ {[%emt 0:00:49]} Kf8 {[%emt 0:00:39]} 48. Re2 {[%emt 0:01:36]} Rxa2 {[%emt 0:00:47]} 49. Be6 {[%emt 0:00:12]} Ra5 {[%emt 0:00:25]} 50. Kf5 {[%emt 0:01:05]} Ke7 {[%emt 0:00:07] White must now prevent ...Kd6.} 51. Ke5 {[%emt 0:00:46]} Bc7+ $1 {[%emt 0:00:42]} 52. Kd4 {[%emt 0:00:04]} Kd6 $1 {[%emt 0:00:04]} 53. Bf7 {[%emt 0:00:37]} Bb6+ {[%emt 0:00:04]} 54. Kd3 {[%emt 0:00:03]} Ra1 {[%emt 0:00:35]} 55. Re6+ {[%emt 0:02:04]} Kc5 {[%emt 0:00:04]} 56. Re5 {[%emt 0:00:05]} Rd1+ {[%emt 0:00:03]} 57. Kc2 {[%emt 0:00:41]} Rd4 {[%emt 0:00:05]} 58. b3 {[%emt 0:00:38]} a5 {[%emt 0:00:15][%cal Oa5a4] And now ...a4! would win.} 59. Rf5 {[%emt 0:01:17]} (59. Kb2 $17 {was worth a try.}) 59... a4 $1 $19 {[%emt 0:01:30]} 60. bxa4 {[%emt 0:02:27] [#]} Kc4 {[%emt 0:00:06] Strongly threatening ...b3+.} 61. Rf3 {[%emt 0:00:21] Inhibits b3+.} Ba5 {[%emt 0:00:02]} (61... Rg4 $19 {...Bd4 is the strong threat.} 62. Rf1 Rg3) 62. Kb2 $17 {[%emt 0:01:24] Black is better.} Rd2+ {[%emt 0:00:55]} 63. Kc1 {[%emt 0:00:10] [#]} b3 $1 {[%emt 0:00:08] ( -> ...Bc3)} 64. Rf4+ {[%emt 0:00:13]} Kc5 {[%emt 0:04:23] Weighted Error Value: White=0.19 (very precise) /Black=0.18 (very precise)} 0-1

[Event "15th Tashkent Open Agzamov 2022"]
[Site "Tashkent"]
[Date "2022.05.05"]
[Round "3.2"]
[White "Suleymenov, Alisher"]
[Black "Sanal, Vahap"]
[Result "1-0"]
[ECO "D37"]
[WhiteElo "2445"]
[BlackElo "2575"]
[Annotator "TA"]
[PlyCount "107"]
[EventDate "2022.05.05"]
[EventType "swiss"]
[EventCountry "UZB"]
[SourceTitle "playchess.com"]
[Source "ChessBase"]
[SourceQuality "1"]
[TimeControl "5400+30"]

{[%evp 17,107,34,32,41,35,31,40,37,35,42,31,6,33,0,0,0,0,0,0,0,0,0,0,0,11,18,6,0,25,35,29,43,50,33,61,32,47,64,50,58,60,72,117,80,124,110,137,112,145,132,479,468,497,476,485,484,482,483,650,654,687,563,800,786,1768,725,792,774,718,637,837,661,982,843,1206,1206,1972,957,3081,746,835,811,801,752,920,887,29963,29965,5527,5414,1779,665]} 1. d4 {[%emt 0:00:02]} Nf6 {[%emt 0:07:25]} 2. c4 {[%emt 0:00:07]} e6 {[%emt 0:00:06]} 3. Nf3 {[%emt 0:00:00]} d5 {[%emt 0:00:00]} 4. Nc3 {[%emt 0:00:00]} Be7 {[%emt 0:01:06]} 5. Bf4 {[%emt 0:01:02]} O-O {[%emt 0:00:11]} 6. e3 {[%emt 0:00:03]} b6 {[%emt 0:00:28]} 7. Bd3 {[%emt 0:00:30][%cal Bf1d3,Bd3f5,Bf5h3][%mdl 32]} Bb7 {[%emt 0:00:13]} 8. cxd5 {[%emt 0:00:29]} exd5 {[%emt 0:00:09]} 9. O-O {[%emt 0:02:07]} c5 {[%emt 0:00:58]} 10. Rc1 {[%emt 0:03:24] D37: Queen's Gambit Declined: 5 Bf4.} (10. Ne5 {seems wilder.} Nc6 11. Qf3 Qc8 12. Rac1) 10... Nbd7 {[%emt 0:05:19]} 11. Qc2 {[%emt 0:05:34]} c4 {[%emt 0:02:14]} 12. Bf5 {[%emt 0:00:13] White is slightly better.} g6 {[%emt 0:00:51]} 13. Bh3 {[%emt 0:00:30]} a6 {[%emt 0:00:23] [#]} 14. Ne5 $146 {[%emt 0:10:22]} ({Predecessor:} 14. b3 b5 15. Nd2 Nh5 16. Bh6 Re8 17. e4 dxe4 18. bxc4 Ndf6 19. Be3 bxc4 20. Nxc4 {0-1 (38) Shidolo,S-Mfune,P Khanty-Mansiysk 2010}) 14... b5 {[%emt 0:01:31][%cal Bb6b5,Bb5b4][%mdl 32]} 15. Bh6 {[%emt 0:10:43]} Re8 {[%emt 0:00:09]} 16. f4 {[%emt 0:00:08]} b4 {[%emt 0:05:46]} 17. Ne2 {[%emt 0:00:06]} Nxe5 {[%emt 0:04:28]} 18. fxe5 {[%emt 0:00:04]} ({Reject} 18. dxe5 Ne4 19. Nd4 Bc5 $17) 18... Ne4 {[%emt 0:00:08]} 19. Ng3 {[%emt 0:00:18]} Nxg3 {[%emt 0:05:59]} 20. hxg3 {[%emt 0:00:04] With the idea Qf2.} Bg5 {[%emt 0:00:13]} 21. Bxg5 {[%emt 0:01:57]} Qxg5 {[%emt 0:00:07]} 22. Rf3 {[%emt 0:12:43][%cal Bf1f3,Bf3f6,Bf6d6][%mdl 32]} Bc6 {[%emt 0:04:18]} 23. Qd2 {[%emt 0:06:08]} a5 {[%emt 0:02:24]} 24. Rf6 {[%emt 0:00:13]} Bb5 {[%emt 0:06:05]} 25. Qf2 {[%emt 0:01:49]} Ra7 {[%emt 0:02:32]} 26. Rd6 {[%emt 0:19:51]} (26. Qf3 $5 {[%cal Rc1f1]}) 26... Rd8 {[%emt 0:02:32]} 27. Qf4 {[%emt 0:01:10]} Qe7 {[%emt 0:00:08]} 28. Rf6 {[%emt 0:05:16]} Kg7 {[%emt 0:19:54]} 29. Rb6 $36 {[%emt 0:03:46][%mdl 2048] White is really pushing.} Be8 {[%emt 0:01:46]} 30. e4 {[%emt 0:04:01]} dxe4 {[%emt 0:16:04]} 31. Rxc4 {[%emt 0:00:05] White is more active.} Kg8 {[%emt 0:00:33]} 32. Qxe4 {[%emt 0:04:29]} f5 {[%emt 0:02:06]} 33. Qe3 {[%emt 0:02:04]} h5 $2 {[%emt 0:03:25][%mdl 8192] Inhibits g4. This costs Black the game.} (33... Rad7 $16 {is more resistant.} 34. Kh1 Rd5) 34. Qh6 $18 {[%emt 0:04:41]} Qg7 {[%emt 0:05:35]} 35. Qg5 {[%emt 0:00:08]} Rda8 {[%emt 0:00:56]} 36. Rf6 {[%emt 0:02:08]} Kh7 {[%emt 0:00:46]} 37. d5 {[%emt 0:00:36][%cal Bd4d5,Bd5d6][%mdl 32]} Rd8 {[%emt 0:01:36]} 38. d6 {[%emt 0:00:25]} Rad7 {[%emt 0:00:30]} 39. Rh4 {[%emt 0:01:21][%cal Oh4h5] Rxh5+! is the strong threat.} Kg8 {[%emt 0:00:23]} 40. Rf4 {[%emt 0:00:24]} Rc8 {[%emt 0:00:13] [#]} 41. Rd4 {[%emt 0:00:34]} (41. Bxf5 $142 $1 {[%mdl 512]} Rc1+ (41... gxf5 42. Qxf5) 42. Kh2 gxf5 43. Qxf5) 41... Rcd8 {[%emt 0:00:40]} 42. b3 {[%emt 0:00:12]} Kh7 {[%emt 0:00:22]} 43. Rd5 {[%emt 0:00:40]} Kg8 {[%emt 0:00:55]} 44. Rxa5 {[%emt 0:00:22]} Rc8 {[%emt 0:00:05]} 45. Rd5 {[%emt 0:00:15][%cal Ba5d5,Bd5d4,Bd4c4][%mdl 32] aiming for e6.} Rc6 {[%emt 0:00:05]} 46. Rd4 {[%emt 0:00:29]} Kh7 {[%emt 0:00:23] [#]} 47. Kh2 {[%emt 0:00:22]} (47. Bxf5 $142 $1 Rc8 (47... gxf5 48. Qxf5+) 48. Qxh5+ Qh6 49. Qxh6+ Kxh6 50. Bxd7 Bxd7 51. e6) 47... Rb6 {[%emt 0:00:20] [#]} 48. Qe3 {[%emt 0:01:27]} (48. Bxf5 $142 $1 Rb5 (48... Rbb7 49. Qxh5+) 49. Qxh5+ Qh6 50. Qxh6+ Kxh6 51. Bxd7 Rxe5 52. Bxe8 Rxe8 53. d7) 48... Rb5 {[%emt 0:00:31]} 49. Rc4 {[%emt 0:00:25] Strongly threatening Rc8.} Rb8 {[%emt 0:00:49] Against Rc8} 50. Qd4 {[%emt 0:00:29] Threatens to win with e6.} Rdb7 {[%emt 0:00:37]} 51. e6 {[%emt 0:00:47]} Kg8 {[%emt 0:01:09]} 52. d7 {[%emt 0:00:36]} Bxd7 {[%emt 0:00:03]} 53. exd7 {[%emt 0:00:09]} Rxd7 {[%emt 0:00:02] [#]} 54. Rxg6 $3 {[%emt 0:00:18][%mdl 512] Weighted Error Value: White=0.17 (very precise) /Black=0.43} 1-0

[Event "15th Tashkent Open Agzamov 2022"]
[Site "Tashkent"]
[Date "2022.05.05"]
[Round "3.3"]
[White "Romanov, Evgeny"]
[Black "Agmanov, Zhandos"]
[Result "1/2-1/2"]
[ECO "A29"]
[WhiteElo "2573"]
[BlackElo "2420"]
[Annotator "TA"]
[PlyCount "99"]
[EventDate "2022.05.05"]
[EventType "swiss"]
[EventCountry "UZB"]
[SourceTitle "playchess.com"]
[Source "ChessBase"]
[SourceQuality "1"]
[TimeControl "5400+30"]

{[%evp 16,99,7,8,18,20,20,9,16,11,12,11,14,11,10,10,12,16,13,20,23,10,7,9,10,10,8,6,8,0,0,-3,0,0,0,0,0,0,40,40,45,40,34,41,62,62,62,62,62,62,62,58,62,62,62,62,72,71,75,60,60,57,71,71,71,71,79,48,62,61,76,76,80,80,80,80,83,83,93,93,101,93,101,93,93,93]} 1. c4 {[%emt 0:06:41]} Nf6 {[%emt 0:02:47]} 2. Nc3 {[%emt 0:00:37]} e5 {[%emt 0:00:13]} 3. Nf3 {[%emt 0:00:55]} Nc6 {[%emt 0:00:53]} 4. g3 {[%emt 0:00:41]} d5 {[%emt 0:03:08]} 5. cxd5 {[%emt 0:00:10]} Nxd5 {[%emt 0:00:05]} 6. Bg2 {[%emt 0:00:12]} Nb6 {[%emt 0:01:17]} 7. O-O {[%emt 0:00:21]} Be7 {[%emt 0:00:18]} 8. Rb1 {[%emt 0:00:19]} a5 {[%emt 0:10:35]} 9. d3 {[%emt 0:01:42]} O-O {[%emt 0:06:50] A29: English Opening: Four Knights Variation with 4 g3.} 10. Be3 {[%emt 0:00:47]} Re8 {[%emt 0:01:31]} 11. Rc1 {[%emt 0:04:36]} Be6 {[%emt 0:06:53] [#] The position is equal.} 12. d4 $146 {[%emt 0:05:18]} ({Predecessor:} 12. Nd2 Nd5 {½-½ (12) Czebe,A (2497)-Ruck,R (2535) Hungary 2005}) 12... exd4 {[%emt 0:05:19]} (12... e4 {is more complex.} 13. Nxe4 Bxa2 14. b3 a4) 13. Nxd4 {[%emt 0:00:26]} Nxd4 {[%emt 0:00:30]} 14. Qxd4 {[%emt 0:02:42]} Qxd4 {[%emt 0:07:13]} 15. Bxd4 {[%emt 0:00:24]} c5 $1 {[%emt 0:03:35]} 16. Be3 {[%emt 0:01:59]} Nc4 {[%emt 0:01:17]} 17. Bf4 {[%emt 0:01:58]} ({Much weaker is} 17. Bxb7 Rab8 18. Bc6 Nxe3 19. fxe3 Rec8 $15) 17... g5 {[%emt 0:02:57] [#]} 18. b3 $1 {[%emt 0:01:27]} gxf4 {[%emt 0:01:28]} 19. bxc4 {[%emt 0:00:08]} fxg3 {[%emt 0:12:25]} 20. hxg3 {[%emt 0:01:04]} Bxc4 {[%emt 0:01:47]} 21. Bxb7 {[%emt 0:05:38]} Rab8 {[%emt 0:00:19]} 22. Bf3 {[%emt 0:09:00]} Red8 {[%emt 0:05:23]} 23. Kg2 {[%emt 0:03:04]} Kg7 {[%emt 0:03:33]} 24. Rh1 {[%emt 0:03:01]} h6 {[%emt 0:00:12]} 25. Rc2 {[%emt 0:05:48]} Be6 {[%emt 0:02:21]} 26. Rh5 {[%emt 0:00:34]} Rb4 {[%emt 0:03:45]} 27. Nd5 {[%emt 0:07:29]} Bxd5 {[%emt 0:00:33]} 28. Rxd5 {[%emt 0:00:08]} Rxd5 {[%emt 0:00:10]} 29. Bxd5 $14 {[%emt 0:00:05][%mdl 4096] Endgame KRB-KRB} Rd4 {[%emt 0:04:36]} 30. Bc4 {[%emt 0:00:26]} Rd6 {[%emt 0:01:58]} 31. e3 {[%emt 0:00:55]} Rb6 {[%emt 0:02:53]} 32. f4 {[%emt 0:02:55]} Rb1 {[%emt 0:02:20]} 33. Kf3 {[%emt 0:00:37]} Rb4 {[%emt 0:02:48]} 34. g4 {[%emt 0:03:22] White is more active.} Bf6 {[%emt 0:01:22]} 35. Ke4 {[%emt 0:04:10]} Rb2 {[%emt 0:00:24]} 36. Rc1 {[%emt 0:00:24]} Rg2 {[%emt 0:01:17]} 37. Bd5 {[%emt 0:06:24]} Be7 {[%emt 0:00:59]} 38. Kf5 {[%emt 0:01:06]} Re2 {[%emt 0:01:05]} 39. Rc3 $1 {[%emt 0:01:12]} Rd2 {[%emt 0:01:05]} 40. Bc4 {[%emt 0:03:37]} Rb2 {[%emt 0:00:17]} 41. Ra3 {[%emt 0:02:59]} Rb4 {[%emt 0:00:35]} 42. Bd5 {[%emt 0:01:15]} c4 {[%emt 0:01:16] And now ...Rb5 would win.} 43. Rc3 $1 {[%emt 0:05:30] White is better.} (43. Rxa5 c3 44. Bb3 Rxb3 $1 45. axb3 c2 $11) 43... Bf6 {[%emt 0:00:01]} 44. Rxc4 {[%emt 0:04:27]} Rxc4 {[%emt 0:00:01]} 45. Bxc4 $16 {[%emt 0:00:08] KB-KB} Bb2 {[%emt 0:00:07]} 46. e4 {[%emt 0:00:26][%cal Be3e4,Be4e5,Be5e6][%mdl 32]} Kf8 {[%emt 0:00:47]} 47. e5 {[%emt 0:01:28]} Ke7 {[%emt 0:00:06]} 48. Ke4 {[%emt 0:00:33]} Bc1 {[%emt 0:01:30]} 49. f5 {[%emt 0:00:29] aiming for f6+.} f6 {[%emt 0:00:09] [#]} 50. e6 $1 {[%emt 0:01:14] Weighted Error Value: White=0.02 (flawless) /Black=0.04 (flawless)} 1/2-1/2

[Event "15th Tashkent Open Agzamov 2022"]
[Site "Tashkent"]
[Date "2022.05.05"]
[Round "3.4"]
[White "Abdurakhmonov, Mukhammadali"]
[Black "Van Foreest, Lucas"]
[Result "1/2-1/2"]
[ECO "D10"]
[WhiteElo "2308"]
[BlackElo "2572"]
[Annotator "TA"]
[PlyCount "154"]
[EventDate "2022.05.05"]
[EventType "swiss"]
[EventCountry "UZB"]
[SourceTitle "playchess.com"]
[Source "ChessBase"]
[SourceQuality "1"]
[TimeControl "5400+30"]

{[%evp 16,154,27,13,20,17,27,16,26,20,22,20,21,21,16,8,2,8,10,6,7,7,10,0,0,0,0,0,0,0,8,5,8,4,11,0,0,0,1,0,0,0,0,0,0,0,0,0,0,0,0,0,0,0,0,0,0,0,0,0,0,0,0,0,0,0,0,0,0,0,0,0,0,0,0,0,0,0,0,0,0,0,0,0,0,0,0,0,0,0,0,0,0,0,0,0,0,0,0,0,0,0,0,0,0,0,0,0,0,0,0,0,0,0,0,0,0,0,0,0,0,0,0,0,0,0,0,0,0,0,0,0,0,0,0,0,0,0,0,0,0]} 1. d4 {[%emt 0:01:24]} d5 {[%emt 0:04:19]} 2. c4 {[%emt 0:02:23]} c6 {[%emt 0:00:25]} 3. cxd5 {[%emt 0:01:51]} cxd5 {[%emt 0:00:04]} 4. Nc3 {[%emt 0:00:05]} Nf6 {[%emt 0:00:20]} 5. Bf4 {[%emt 0:01:16]} Nc6 {[%emt 0:00:05]} 6. e3 {[%emt 0:00:08]} a6 {[%emt 0:00:51]} 7. Bd3 {[%emt 0:01:12]} Bg4 {[%emt 0:05:34]} 8. Nge2 {[%emt 0:02:11]} e6 {[%emt 0:00:22]} 9. h3 {[%emt 0:00:49]} Bxe2 {[%emt 0:02:15] D10: Slav Defence: 3 cxd5 (without early Nf3) and 3 Nc3.} 10. Qxe2 {[%emt 0:00:07]} h6 {[%emt 0:00:10]} 11. O-O {[%emt 0:01:55]} Bd6 {[%emt 0:01:19]} 12. Bxd6 {[%emt 0:00:07]} Qxd6 {[%emt 0:00:03] [#] The position is equal.} 13. Rac1 $146 {[%emt 0:00:14]} ({Predecessor:} 13. f4 O-O 14. a3 b5 15. b4 Rac8 16. Rac1 Rc7 17. g4 Rfc8 18. Qd2 Nd7 19. Bxb5 axb5 20. Nxb5 {1-0 (29) Vifleemskaia,S (1926)-Piliczewski,B (1938) Chess.com INT 2022}) 13... O-O {[%emt 0:00:36]} 14. Na4 {[%emt 0:01:29]} Nd7 {[%emt 0:05:23]} 15. Bb1 {[%emt 0:06:55]} Rac8 {[%emt 0:02:36]} 16. Nc5 {[%emt 0:02:22]} Nxc5 {[%emt 0:01:58]} 17. Rxc5 {[%emt 0:00:09]} g6 {[%emt 0:02:32]} 18. Rfc1 {[%emt 0:00:13]} Ne7 {[%emt 0:00:50]} 19. Rxc8 {[%emt 0:05:31]} Rxc8 {[%emt 0:00:14]} 20. Rxc8+ {[%emt 0:00:08]} Nxc8 {[%emt 0:00:06]} 21. g3 {[%emt 0:01:39]} Qb6 {[%emt 0:03:09]} 22. Bd3 {[%emt 0:05:46]} Ne7 {[%emt 0:00:14]} 23. Qd2 {[%emt 0:00:54]} Nc6 {[%emt 0:01:00]} 24. Qc3 {[%emt 0:02:40]} Kg7 {[%emt 0:00:38]} 25. h4 {[%emt 0:00:39]} f5 {[%emt 0:04:50]} 26. Kf1 {[%emt 0:07:22]} Kf6 {[%emt 0:00:57]} 27. Ke2 {[%emt 0:00:22]} g5 {[%emt 0:00:58]} 28. hxg5+ {[%emt 0:00:04]} hxg5 {[%emt 0:00:05]} 29. Qa3 {[%emt 0:03:26]} Ne7 {[%emt 0:01:27]} 30. Qc3 {[%emt 0:00:49]} Kf7 {[%emt 0:00:23]} 31. Kd2 {[%emt 0:00:17]} Nc6 {[%emt 0:01:57]} 32. Ke2 {[%emt 0:00:29]} Ke8 {[%emt 0:00:41]} 33. Bc2 {[%emt 0:00:25]} Kd8 {[%emt 0:03:45]} 34. a3 {[%emt 0:04:51]} Ne7 {[%emt 0:04:08]} 35. Kd2 {[%emt 0:01:36]} Nc8 {[%emt 0:03:02]} 36. Bd3 {[%emt 0:00:42]} Nd6 {[%emt 0:00:47]} 37. b4 {[%emt 0:02:24]} Kd7 {[%emt 0:00:21]} 38. Qc1 {[%emt 0:04:18]} Qd8 {[%emt 0:04:37]} 39. Qh1 {[%emt 0:01:15]} Kc7 {[%emt 0:01:50]} 40. Qh6 {[%emt 0:01:04]} Qe7 {[%emt 0:00:41]} 41. Qh8 {[%emt 0:01:05]} g4 {[%emt 0:00:28]} 42. Kc3 {[%emt 0:02:39]} Qd7 {[%emt 0:01:09]} 43. Kb2 {[%emt 0:01:05]} Qe7 {[%emt 0:08:04]} 44. Kb3 {[%emt 0:00:42]} Nf7 {[%emt 0:00:23]} 45. Qh7 {[%emt 0:02:15]} Qe8 {[%emt 0:04:32]} 46. Qg6 {[%emt 0:01:07]} Kb8 {[%emt 0:03:03]} 47. Kb2 {[%emt 0:02:02]} Ka7 {[%emt 0:00:11]} 48. Kb3 {[%emt 0:00:57]} Qd7 {[%emt 0:00:30]} 49. Qh7 {[%emt 0:00:35]} Kb6 {[%emt 0:01:03]} 50. Qg7 {[%emt 0:00:23]} Qe7 {[%emt 0:01:13]} 51. Bc2 {[%emt 0:03:32]} Ka7 {[%emt 0:03:46]} 52. Bd3 {[%emt 0:00:17]} Qe8 {[%emt 0:00:14]} 53. Qg6 {[%emt 0:00:17]} Kb8 {[%emt 0:02:07]} 54. Kb2 {[%emt 0:00:37]} Kc7 {[%emt 0:01:02]} 55. Qg7 {[%emt 0:01:06]} Qd7 {[%emt 0:00:36]} 56. Kb3 {[%emt 0:02:15]} Nd6 {[%emt 0:00:10]} 57. Qxd7+ {[%emt 0:01:48]} Kxd7 $11 {[%emt 0:01:11][%mdl 4096] Endgame KB-KN} 58. a4 {[%emt 0:00:01]} Nf7 {[%emt 0:00:46] [#] Hoping for ...Ng5.} 59. Kc3 {[%emt 0:00:09]} Ng5 {[%emt 0:00:21] Strongly threatening ...Nh3.} 60. Kd2 $1 {[%emt 0:00:19]} Kc7 {[%emt 0:00:50]} 61. Kd1 {[%emt 0:03:28]} Kb6 {[%emt 0:01:31]} 62. a5+ {[%emt 0:00:53]} Kc7 {[%emt 0:00:37]} 63. Ke2 {[%emt 0:01:01]} Kc6 {[%emt 0:00:13]} 64. Kd2 {[%emt 0:00:29]} Nf7 {[%emt 0:00:15]} 65. Kc2 {[%emt 0:01:01]} Nd6 {[%emt 0:00:14]} 66. Kc3 {[%emt 0:00:45]} b6 {[%emt 0:02:41]} 67. axb6 {[%emt 0:01:49]} Kxb6 {[%emt 0:00:05]} 68. Kb3 {[%emt 0:00:20]} Nf7 {[%emt 0:00:36] [#] Threatens to win with ...Ng5.} 69. Kc3 {[%emt 0:00:43]} Ng5 {[%emt 0:01:06] And now ...Nh3 would win.} 70. Kd2 $1 {[%emt 0:00:06]} Kb7 {[%emt 0:00:49]} 71. Kd1 {[%emt 0:01:14]} Ka7 {[%emt 0:00:18]} 72. Ke1 {[%emt 0:02:05]} Kb6 {[%emt 0:01:15]} 73. Kd2 {[%emt 0:00:06]} Kb7 {[%emt 0:00:12]} 74. Kd1 {[%emt 0:00:37]} Nf7 {[%emt 0:00:28]} 75. Kc2 {[%emt 0:00:35]} Kb6 {[%emt 0:00:05]} 76. Kd1 {[%emt 0:01:23]} a5 {[%emt 0:00:22]} 77. bxa5+ {[%emt 0:00:00]} Kxa5 {[%emt 0:00:04] An interesting draw.  Weighted Error Value: White=0.01 (flawless) /Black=0.01 (flawless)} 1/2-1/2